fUST/lending_fUST_20240901
["ID","MTS","AMOUNT","RATE_DAILY","PERIOD"]
[336790231,1725150646356,-500.0,0.00032602,31]
[336790232,1725150646366,-500.0,0.00032602,31]
[336790233,1725150646377,-500.0,0.00032602,31]
[336790234,1725150646387,-276.8619329,0.00032602,31]
[336790236,1725150687936,598.58894741,0.00026212,2]
[336790239,1725150771169,167.13794,0.00014247,2]
[336790245,1725151639100,-469.62404725,0.00025971,2]
[336790246,1725151639123,-1520.24571189,0.00030122,2]
[336790247,1725151642128,-2356.34547911,0.00030122,2]
[336790248,1725151642159,-629.553144,0.00030177,2]
[336790249,1725151642181,-300.0,0.00030342,2]
[336790250,1725151642202,-2679.2618362,0.00030343,2]
[336790251,1725151642223,-151.38344542,0.00031688,2]
[336790252,1725151642244,-157.381259,0.00031781,2]
[336790253,1725151642266,-3000.0,0.00032,120]
[336790254,1725151642286,-323.9334244,0.00032502,2]
[336790255,1725151652113,-76.58127449,0.00032502,2]
[336790256,1725151652134,-170.63311115,0.00032502,2]
[336790257,1725151652161,-646.47095142,0.00032502,2]
[336790258,1725151652181,-2576.10528517,0.00032592,4]
[336790259,1725151652202,-135.17278138,0.00032602,31]
[336790260,1725151653141,-2668.8551893,0.00032602,11]
[336790261,1725151653164,-276.95324031,0.00032602,11]
[336790262,1725151653184,-87.96528572,0.00032602,31]
[336790263,1725151653206,-500.0,0.00032602,31]
[336790264,1725151653240,-384.66188229,0.00032602,31]
[336790287,1725151832088,-646.63,0.00030614,2]
[336790290,1725151832176,-221.0966399,0.00030614,2]
[336790432,1725151838398,-357.9889526,0.00030614,2]
[336790434,1725151838408,-171.640211,0.00030739,2]
[336790436,1725151838418,-171.640211,0.00031006,2]
[336790438,1725151838427,-171.640211,0.00031273,2]
[336790440,1725151838437,-171.640211,0.0003154,2]
[336790441,1725151838446,-151.10598103,0.00031681,2]
[336790516,1725151840433,-200.42160023,0.00031681,2]
[336790517,1725151840442,-157.381259,0.00031781,2]
[336790518,1725151840452,-171.640211,0.00031807,2]
[336790519,1725151840462,-171.640211,0.00032074,2]
[336790520,1725151840472,-171.640211,0.00032341,2]
[336790521,1725151840482,-565.66208251,0.00032502,2]
[336790522,1725151840492,-340.95511134,0.00032592,4]
[336790523,1725151840502,-276.95324031,0.00032602,11]
[336790525,1725151840514,-1334.42759465,0.00032602,11]
[336790527,1725151840525,-115.33811771,0.00032602,31]
[336790529,1725151840535,-500.0,0.00032602,31]
[336790530,1725151840545,-642.67,0.00032602,31]
[336790532,1725151840554,-500.0,0.00032602,31]
[336790533,1725151840563,-500.0,0.00032602,31]
[336790534,1725151840572,-500.0,0.00032602,31]
[336790535,1725151840581,-500.0,0.00032602,31]
[336790536,1725151840591,-500.0,0.00032602,31]
[336790537,1725151840601,-500.0,0.00032602,31]
[336790538,1725151840611,-500.0,0.00032602,31]
[336790539,1725151840621,-611.52,0.00032602,31]
[336790540,1725151840631,-500.0,0.00032602,31]
[336790541,1725151840640,-500.0,0.00032602,31]
[336790542,1725151840649,-500.0,0.00032602,31]
[336790543,1725151840659,-500.0,0.00032602,31]
[336790544,1725151840669,-547.49,0.00032602,31]
[336790545,1725151840678,-500.0,0.00032602,31]
[336790546,1725151840687,-500.0,0.00032602,31]
[336790547,1725151840696,-500.0,0.00032602,31]
[336790548,1725151840706,-500.0,0.00032602,31]
[336790549,1725151840715,-500.0,0.00032602,31]
[336790550,1725151840724,-509.29,0.00032602,30]
[336790551,1725151840733,-500.0,0.00032602,31]
[336790552,1725151840742,-500.0,0.00032602,31]
[336790553,1725151840751,-500.0,0.00032602,31]
[336790554,1725151840761,-500.0,0.00032602,31]
[336790555,1725151840770,-500.0,0.00032602,31]
[336790556,1725151840781,-512.15635729,0.00032602,31]
[336790557,1725151840791,-500.0,0.00032602,31]
[336790558,1725151840802,-500.0,0.00032602,31]
[336790559,1725151840811,-500.0,0.00032602,31]
[336790560,1725151840822,-500.0,0.00032602,31]
[336790561,1725151840831,-472.25,0.00032602,31]
[336790562,1725151840840,-596.17,0.00032602,31]
[336790563,1725151840849,-500.0,0.00032602,31]
[336790564,1725151840859,-500.0,0.00032602,31]
[336790565,1725151840868,-548.56,0.00032602,31]
[336790566,1725151840877,-500.0,0.00032602,31]
[336790567,1725151840886,-500.0,0.00032602,31]
[336790568,1725151840897,-500.0,0.00032602,31]
[336790569,1725151840906,-514.2,0.00032602,31]
[336790570,1725151840916,-622.58,0.00032602,31]
[336790571,1725151840925,-500.0,0.00032602,31]
[336790572,1725151840934,-500.0,0.00032602,31]
[336790573,1725151840944,-507.7,0.00032602,31]
[336790574,1725151840953,-500.0,0.00032602,31]
[336790575,1725151840962,-500.0,0.00032602,31]
[336790576,1725151840971,-513.19,0.00032602,31]
[336790577,1725151840979,-500.0,0.00032602,31]
[336790578,1725151841192,-500.0,0.00032602,31]
[336790579,1725151841211,-500.0,0.00032602,31]
[336790580,1725151841221,-591.02,0.00032602,31]
[336790581,1725151841230,-500.0,0.00032602,31]
[336790582,1725151841239,-500.0,0.00032602,31]
[336790583,1725151841249,-502.49912155,0.00032602,31]
[336790584,1725151841259,-500.0,0.00032602,31]
[336790585,1725151841268,-500.0,0.00032602,31]
[336790586,1725151841277,-500.0,0.00032602,31]
[336790587,1725151841287,-500.0,0.00032602,31]
[336790588,1725151841297,-500.0,0.00032602,31]
[336790589,1725151841306,-500.0,0.00032602,31]
[336790590,1725151841316,-500.0,0.00032602,31]
[336790591,1725151841325,-500.0,0.00032602,31]
[336790592,1725151841335,-500.0,0.00032602,31]
[336790593,1725151841344,-500.0,0.00032602,31]
[336790594,1725151841355,-500.0,0.00032602,31]
[336790595,1725151841366,-500.0,0.00032602,31]
[336790596,1725151841375,-500.0,0.00032602,31]
[336790597,1725151841385,-500.0,0.00032602,31]
[336790598,1725151841395,-500.0,0.00032602,31]
[336790599,1725151841405,-500.0,0.00032602,31]
[336790600,1725151841415,-500.0,0.00032602,31]
[336790601,1725151841426,-500.0,0.00032602,31]
[336790602,1725151841435,-311.47,0.00032602,31]
[336790603,1725151841446,-599.38,0.00032602,31]
[336790604,1725151841457,-500.0,0.00032602,31]
[336790605,1725151841466,-500.0,0.00032602,31]
[336790606,1725151841478,-500.0,0.00032602,31]
[336790607,1725151841488,-500.0,0.00032602,31]
[336790608,1725151841500,-500.0,0.00032602,31]
[336790609,1725151841509,-500.0,0.00032602,31]
[336790610,1725151841518,-522.81833909,0.00032602,31]
[336790611,1725151841528,-500.0,0.00032602,31]
[336790612,1725151841538,-500.0,0.00032602,31]
[336790613,1725151841548,-500.0,0.00032602,31]
[336790614,1725151841560,-312.04,0.00032602,31]
[336790615,1725151841570,-471.04,0.00032602,31]
[336790616,1725151841581,-500.0,0.00032602,31]
[336790617,1725151841591,-500.0,0.00032602,31]
[336790618,1725151841601,-500.0,0.00032602,8]
[336790619,1725151841611,-500.0,0.00032602,8]
[336790620,1725151841623,-500.0,0.00032602,31]
[336790621,1725151841633,-500.0,0.00032602,8]
[336790622,1725151841645,-500.0,0.00032602,8]
[336790623,1725151841656,-500.0,0.00032602,8]
[336790624,1725151841667,-500.0,0.00032602,8]
[336790625,1725151841678,-500.0,0.00032602,31]
[336790626,1725151841687,-500.0,0.00032602,8]
[336790627,1725151841697,-500.0,0.00032602,31]
[336790628,1725151841707,-500.0,0.00032602,8]
[336790629,1725151841717,-500.0,0.00032602,8]
[336790630,1725151841728,-500.0,0.00032602,31]
[336790631,1725151841740,-500.0,0.00032602,8]
[336790632,1725151841751,-500.0,0.00032602,31]
[336790633,1725151841761,-496.03,0.00032602,31]
[336790634,1725151841771,-500.0,0.00032602,31]
[336790635,1725151841783,-511.81801946,0.00032602,31]
[336790636,1725151841792,-500.0,0.00032602,31]
[336790637,1725151841802,-500.0,0.00032602,31]
[336790638,1725151841812,-500.0,0.00032602,31]
[336790639,1725151841824,-500.0,0.00032602,31]
[336790640,1725151841835,-500.0,0.00032602,21]
[336790641,1725151841847,-500.0,0.00032602,31]
[336790642,1725151841857,-500.0,0.00032602,31]
[336790643,1725151841867,-500.0,0.00032602,31]
[336790644,1725151841878,-500.0,0.00032602,31]
[336790645,1725151841888,-500.0,0.00032602,31]
[336790646,1725151841899,-500.0,0.00032602,31]
[336790647,1725151841909,-500.0,0.00032602,31]
[336790648,1725151841919,-161.65,0.00032602,31]
[336790649,1725151841929,-500.0,0.00032602,31]
[336790650,1725151841941,-500.0,0.00032602,31]
[336790651,1725151841952,-500.0,0.00032602,31]
[336790652,1725151841962,-500.0,0.00032602,31]
[336790653,1725151841972,-500.0,0.00032602,31]
[336790654,1725151841983,-500.0,0.00032602,31]
[336790655,1725151841997,-500.0,0.00032602,31]
[336790656,1725151842008,-500.0,0.00032602,31]
[336790657,1725151842018,-500.0,0.00032602,31]
[336790658,1725151842027,-546.42,0.00032602,31]
[336790659,1725151842037,-500.0,0.00032602,31]
[336790660,1725151842049,-500.0,0.00032602,31]
[336790661,1725151842058,-500.0,0.00032602,31]
[336790662,1725151842068,-500.0,0.00032602,31]
[336790663,1725151842078,-500.0,0.00032602,31]
[336790664,1725151842087,-171.89,0.00032602,31]
[336790665,1725151842096,-500.0,0.00032602,31]
[336790666,1725151842106,-500.0,0.00032602,31]
[336790667,1725151842115,-500.0,0.00032602,31]
[336790668,1725151842124,-500.0,0.00032602,31]
[336790669,1725151842133,-375.89,0.00032602,31]
[336790670,1725151842142,-500.0,0.00032602,31]
[336790671,1725151842151,-500.0,0.00032602,31]
[336790672,1725151842160,-445.68892038,0.00032602,31]
[336790673,1725151842169,-500.0,0.00032602,31]
[336790674,1725151842178,-500.0,0.00032602,31]
[336790675,1725151842187,-500.0,0.00032602,31]
[336790676,1725151842196,-500.0,0.00032602,31]
[336790677,1725151842205,-500.0,0.00032602,31]
[336790678,1725151842214,-500.0,0.00032602,31]
[336790679,1725151842224,-617.41,0.00032602,31]
[336790680,1725151842233,-500.0,0.00032602,31]
[336790681,1725151842243,-389.84,0.00032602,31]
[336790682,1725151842253,-500.0,0.00032602,31]
[336790683,1725151842263,-500.0,0.00032602,31]
[336790684,1725151842273,-204.82,0.00032602,31]
[336790685,1725151842283,-544.78559121,0.00032602,31]
[336790686,1725151842295,-500.0,0.00032602,31]
[336790687,1725151842305,-500.0,0.00032602,31]
[336790688,1725151842314,-500.0,0.00032602,31]
[336790689,1725151842323,-500.0,0.00032602,31]
[336790690,1725151842333,-305.13,0.00032602,31]
[336790691,1725151842343,-500.0,0.00032602,31]
[336790692,1725151842353,-500.0,0.00032602,31]
[336790693,1725151842362,-500.0,0.00032602,31]
[336790694,1725151842372,-157.34,0.00032602,31]
[336790695,1725151842381,-500.0,0.00032602,31]
[336790696,1725151842391,-500.0,0.00032602,31]
[336790697,1725151842401,-500.0,0.00032602,31]
[336790698,1725151842410,-221.21,0.00032602,31]
[336790699,1725151842420,-500.0,0.00032602,31]
[336790700,1725151842430,-500.0,0.00032602,31]
[336790701,1725151842439,-500.0,0.00032602,31]
[336790702,1725151842449,-343.22,0.00032602,31]
[336790703,1725151842458,-500.0,0.00032602,31]
[336790704,1725151842468,-500.0,0.00032602,31]
[336790705,1725151842477,-280.42,0.00032602,31]
[336790706,1725151842487,-500.0,0.00032602,31]
[336790707,1725151842496,-582.72,0.00032602,31]
[336790708,1725151842506,-500.0,0.00032602,31]
[336790709,1725151842516,-500.0,0.00032602,31]
[336790710,1725151842525,-500.0,0.00032602,31]
[336790711,1725151842536,-500.0,0.00032602,31]
[336790712,1725151842546,-500.0,0.00032602,31]
[336790713,1725151842557,-495.69,0.00032602,31]
[336790714,1725151842567,-190.65675149,0.00032602,31]
[336790715,1725151842609,-309.34324851,0.00032602,31]
[336790716,1725151842619,-500.0,0.00032602,31]
[336790717,1725151842628,-500.0,0.00032602,31]
[336790718,1725151842638,-500.0,0.00032602,31]
[336790719,1725151842648,-500.0,0.00032602,31]
[336790720,1725151842658,-500.0,0.00032602,31]
[336790721,1725151842667,-490.88849458,0.00032602,31]
[336790724,1725151842678,-500.0,0.00032602,31]
[336790726,1725151842687,-500.0,0.00032602,31]
[336790728,1725151842697,-500.0,0.00032602,31]
[336790730,1725151842707,-500.0,0.00032602,31]
[336790732,1725151842717,-500.0,0.00032602,31]
[336790733,1725151842728,-500.0,0.00032602,31]
[336790735,1725151842737,-500.0,0.00032602,31]
[336790737,1725151842747,-500.0,0.00032602,31]
[336790739,1725151842756,-500.0,0.00032602,31]
[336790741,1725151842766,-500.0,0.00032602,31]
[336790742,1725151842775,-500.0,0.00032602,31]
[336790743,1725151842785,-49.25798017,0.00032602,31]
[336790749,1725151843299,-450.74201983,0.00032602,31]
[336790750,1725151843318,-500.0,0.00032602,31]
[336790753,1725151843328,-627.97,0.00032602,31]
[336790755,1725151843339,-500.0,0.00032602,31]
[336790757,1725151843349,-500.0,0.00032602,20]
[336790759,1725151843360,-500.0,0.00032602,31]
[336790761,1725151843369,-500.0,0.00032602,31]
[336790763,1725151843378,-500.0,0.00032602,31]
[336790765,1725151843386,-500.0,0.00032602,31]
[336790767,1725151843396,-500.0,0.00032602,31]
[336790769,1725151843407,-500.0,0.00032602,31]
[336790771,1725151843416,-500.0,0.00032602,31]
[336790773,1725151843426,-500.0,0.00032602,31]
[336790774,1725151843437,-500.0,0.00032602,31]
[336790775,1725151843446,-500.0,0.00032602,7]
[336790776,1725151843456,-500.0,0.00032602,7]
[336790777,1725151843466,-527.13136881,0.00032602,31]
[336790778,1725151843478,-500.0,0.00032602,31]
[336790779,1725151843489,-500.0,0.00032602,31]
[336790780,1725151843500,-500.0,0.00032602,31]
[336790781,1725151843512,-500.0,0.00032602,31]
[336790782,1725151843523,-500.0,0.00032602,31]
[336790783,1725151843532,-500.0,0.00032602,31]
[336790784,1725151843543,-500.0,0.00032602,31]
[336790785,1725151843556,-500.0,0.00032602,31]
[336790786,1725151843566,-290.51,0.00032602,31]
[336790787,1725151843575,-500.0,0.00032602,31]
[336790788,1725151843586,-500.0,0.00032602,31]
[336790789,1725151843597,-500.0,0.00032602,31]
[336790790,1725151843607,-523.21,0.00032602,31]
[336790791,1725151843619,-500.0,0.00032602,31]
[336790793,1725151843630,-283.15,0.00032602,31]
[336790794,1725151843640,-500.0,0.00032602,31]
[336790797,1725151843650,-500.0,0.00032602,31]
[336790798,1725151843660,-633.94086659,0.00032602,31]
[336790800,1725151843671,-116.21774477,0.00032602,31]
[336790825,1725151851599,169.450038,0.00014247,2]
[336790827,1725152329014,10000.0,0.00025,120]
[336790828,1725152344081,10000.0,0.00023,90]
[336790829,1725152360317,10000.0,0.00023,60]
[336790835,1725152685732,10000.0,0.00025,120]
[336790836,1725152701181,10000.0,0.00023,90]
[336790837,1725152710818,10000.0,0.00012,30]
[336790838,1725152718976,10000.0,0.00025,120]
[336790839,1725152736711,10000.0,0.00023,60]
[336790840,1725152746612,10000.0,0.00023,90]
[336790841,1725152770868,9000.0,0.00025,120]
[336790842,1725152830142,-250.0,0.00029878,2]
[336790843,1725152830167,-337.5775046,0.00029939,2]
[336790844,1725152830191,-306.6169086,0.00029945,2]
[336790845,1725152830215,-400.0,0.00030034,2]
[336790846,1725152830240,-8983.34422777,0.00030035,2]
[336790847,1725152831103,-2396.76029637,0.00030035,2]
[336790848,1725152851110,-7055.61760577,0.00030035,2]
[336790849,1725152917286,168.979282,0.00014247,2]
[336790855,1725153007039,470.12534592,0.00025969,2]
[336790903,1725153032482,-717.02083974,0.00030035,2]
[336790915,1725153032579,-243.02260177,0.00030035,2]
[336791018,1725153038821,-1141.94873789,0.00030035,2]
[336791019,1725153038833,-301.17905239,0.00030035,2]
[336791020,1725153038842,-167.834276,0.00030567,2]
[336791021,1725153038851,-222.551646,0.00030839,2]
[336791022,1725153038860,-354.33561709,0.00031492,70]
[336791023,1725153038871,-151.38344542,0.00031688,2]
[336791024,1725153038881,-157.381259,0.00031781,2]
[336791025,1725153038892,-222.551646,0.00032446,2]
[336791026,1725153038903,-652.8091802,0.000325,2]
[336791027,1725153038913,-400.0,0.000325,2]
[336791028,1725153038923,-896.73917145,0.00032501,2]
[336791029,1725153038932,-13.88935749,0.00032501,2]
[336791030,1725153038945,-3935.79212941,0.00032501,2]
[336791031,1725153038954,-3949.68148686,0.00032501,2]
[336791032,1725153038963,-3949.68148686,0.00032502,2]
[336791033,1725153038972,-3949.68148686,0.00032502,2]
[336791034,1725153038981,-409.90948808,0.00032502,2]
[336791035,1725153038990,-3949.68148686,0.00032502,2]
[336791036,1725153039000,-20884.8552812,0.00032592,4]
[336791037,1725153039009,-2358.17343556,0.000326,2]
[336791038,1725153039020,-500.0,0.00032601,2]
[336791039,1725153039030,-500.0,0.00032601,2]
[336791040,1725153039043,-500.0,0.00032601,2]
[336791041,1725153039055,-500.0,0.00032601,2]
[336791042,1725153039067,-500.0,0.00032601,2]
[336791043,1725153039076,-500.0,0.00032601,2]
[336791044,1725153039085,-500.0,0.00032601,2]
[336791045,1725153039094,-500.0,0.00032601,2]
[336791046,1725153039104,-500.0,0.00032601,2]
[336791047,1725153039113,-450.0,0.00032601,2]
[336791048,1725153039122,-500.0,0.00032601,2]
[336791049,1725153039131,-500.0,0.00032601,2]
[336791050,1725153039141,-500.0,0.00032601,2]
[336791051,1725153039150,-500.0,0.00032601,2]
[336791052,1725153039159,-500.0,0.00032601,2]
[336791053,1725153039168,-646.57752991,0.00032601,2]
[336791054,1725153039178,-500.0,0.00032601,2]
[336791055,1725153039188,-500.0,0.00032601,2]
[336791056,1725153039198,-500.0,0.00032601,2]
[336791057,1725153039208,-500.0,0.00032601,2]
[336791058,1725153039218,-500.0,0.00032601,2]
[336791059,1725153039228,-500.0,0.00032601,2]
[336791060,1725153039237,-500.0,0.00032601,2]
[336791061,1725153039247,-500.0,0.00032601,2]
[336791062,1725153039256,-500.0,0.00032601,2]
[336791063,1725153039267,-500.0,0.00032601,2]
[336791064,1725153039276,-500.0,0.00032601,2]
[336791065,1725153039286,-500.0,0.00032601,2]
[336791066,1725153039295,-500.0,0.00032601,2]
[336791067,1725153039304,-500.0,0.00032601,2]
[336791068,1725153039314,-500.0,0.00032601,2]
[336791069,1725153039323,-500.0,0.00032601,2]
[336791070,1725153039332,-381.81094901,0.00032601,2]
[336791071,1725153039341,-500.0,0.00032601,2]
[336791072,1725153039350,-500.0,0.00032601,2]
[336791073,1725153039358,-500.00000001,0.00032601,2]
[336791074,1725153039368,-500.0,0.00032601,2]
[336791075,1725153039376,-500.0,0.00032601,2]
[336791076,1725153039386,-500.0,0.00032601,2]
[336791077,1725153039396,-500.0,0.00032601,2]
[336791078,1725153039405,-214.17033626,0.00032601,2]
[336791079,1725153039414,-150.01,0.00032601,2]
[336791080,1725153039423,-300.88614186,0.00032601,2]
[336791081,1725153039433,-667.21379733,0.00032602,11]
[336791082,1725153039442,-383.78225523,0.00032602,31]
[336791083,1725153039452,-500.0,0.00032602,31]
[336791084,1725153039461,-500.0,0.00032602,31]
[336791085,1725153039471,-500.0,0.00032602,31]
[336791086,1725153039479,-500.0,0.00032602,31]
[336791087,1725153039489,-500.0,0.00032602,31]
[336791088,1725153039498,-500.0,0.00032602,31]
[336791089,1725153039508,-501.0151017,0.00032602,31]
[336791090,1725153039517,-500.0,0.00032602,31]
[336791091,1725153039527,-500.0,0.00032602,31]
[336791092,1725153039536,-500.0,0.00032602,31]
[336791093,1725153039546,-500.0,0.00032602,31]
[336791094,1725153039555,-500.0,0.00032602,31]
[336791095,1725153039565,-500.0,0.00032602,31]
[336791096,1725153039575,-500.0,0.00032602,31]
[336791097,1725153039584,-500.0,0.00032602,31]
[336791098,1725153039593,-500.0,0.00032602,31]
[336791099,1725153039602,-500.0,0.00032602,31]
[336791100,1725153039611,-500.0,0.00032602,31]
[336791101,1725153039620,-323.49,0.00032602,31]
[336791102,1725153039630,-500.0,0.00032602,31]
[336791103,1725153039640,-500.0,0.00032602,31]
[336791104,1725153039649,-500.0,0.00032602,31]
[336791105,1725153039659,-500.0,0.00032602,31]
[336791106,1725153039668,-500.0,0.00032602,31]
[336791107,1725153039678,-500.0,0.00032602,31]
[336791108,1725153039688,-500.0,0.00032602,31]
[336791109,1725153039697,-500.0,0.00032602,31]
[336791110,1725153039706,-500.0,0.00032602,31]
[336791111,1725153039715,-500.0,0.00032602,31]
[336791112,1725153039725,-500.0,0.00032602,31]
[336791113,1725153039735,-500.0,0.00032602,31]
[336791114,1725153039744,-500.0,0.00032602,31]
[336791115,1725153039754,-500.0,0.00032602,31]
[336791116,1725153039764,-500.0,0.00032602,31]
[336791117,1725153039774,-500.0,0.00032602,31]
[336791118,1725153039785,-500.0,0.00032602,31]
[336791119,1725153039795,-500.0,0.00032602,31]
[336791120,1725153039807,-500.0,0.00032602,31]
[336791121,1725153039816,-178.08,0.00032602,31]
[336791122,1725153039828,-500.0,0.00032602,31]
[336791123,1725153039839,-500.0,0.00032602,31]
[336791124,1725153039848,-500.0,0.00032602,31]
[336791126,1725153040052,-500.0,0.00032602,31]
[336791127,1725153040069,-500.0,0.00032602,31]
[336791128,1725153040078,-500.0,0.00032602,31]
[336791129,1725153040088,-500.0,0.00032602,31]
[336791130,1725153040097,-500.0,0.00032602,31]
[336791132,1725153040106,-500.0,0.00032602,31]
[336791133,1725153040116,-500.0,0.00032602,31]
[336791134,1725153040125,-500.0,0.00032602,31]
[336791135,1725153040134,-500.0,0.00032602,31]
[336791136,1725153040144,-500.0,0.00032602,31]
[336791137,1725153040153,-500.0,0.00032602,31]
[336791138,1725153040163,-500.0,0.00032602,31]
[336791139,1725153040172,-500.0,0.00032602,31]
[336791140,1725153040182,-500.0,0.00032602,31]
[336791141,1725153040191,-500.0,0.00032602,31]
[336791142,1725153040200,-596.04,0.00032602,31]
[336791143,1725153040210,-500.0,0.00032602,31]
[336791145,1725153040219,-500.0,0.00032602,31]
[336791146,1725153040228,-500.0,0.00032602,31]
[336791148,1725153040237,-500.0,0.00032602,31]
[336791150,1725153040247,-500.0,0.00032602,31]
[336791152,1725153040256,-500.0,0.00032602,31]
[336791153,1725153040265,-237.02,0.00032602,31]
[336791154,1725153040275,-500.0,0.00032602,31]
[336791155,1725153040284,-413.72,0.00032602,31]
[336791157,1725153040294,-500.0,0.00032602,31]
[336791159,1725153040304,-500.0,0.00032602,31]
[336791161,1725153040313,-500.0,0.00032602,31]
[336791163,1725153040323,-500.0,0.00032602,31]
[336791164,1725153040332,-500.0,0.00032602,31]
[336791166,1725153040342,-534.27189257,0.00032602,31]
[336791168,1725153040355,-500.0,0.00032602,31]
[336791170,1725153040365,-644.68,0.00032602,31]
[336791172,1725153040374,-500.0,0.00032602,31]
[336791174,1725153040384,-366.98506349,0.00032602,31]
[336791176,1725153040395,-500.0,0.00032602,31]
[336791177,1725153040405,-500.0,0.00032602,14]
[336791178,1725153040415,-500.0,0.00032602,31]
[336791180,1725153040424,-500.0,0.00032602,31]
[336791182,1725153040434,-500.0,0.00032602,31]
[336791184,1725153040446,-500.0,0.00032602,31]
[336791186,1725153040456,-500.0,0.00032602,31]
[336791187,1725153040465,-500.0,0.00032602,31]
[336791189,1725153040475,-438.12,0.00032602,31]
[336791190,1725153040485,-500.0,0.00032602,31]
[336791192,1725153040495,-500.0,0.00032602,31]
[336791194,1725153040505,-500.0,0.00032602,31]
[336791195,1725153040517,-195.7848635,0.00032602,31]
[336791197,1725153040527,-502.34445884,0.00032602,31]
[336791198,1725153040537,-500.0,0.00032602,31]
[336791199,1725153040546,-640.19,0.00032602,31]
[336791201,1725153040556,-500.0,0.00032602,31]
[336791202,1725153040566,-518.15,0.00032602,31]
[336791203,1725153040575,-500.0,0.00032602,31]
[336791204,1725153040584,-500.0,0.00032602,31]
[336791205,1725153040594,-500.0,0.00032602,31]
[336791206,1725153040604,-500.0,0.00032602,7]
[336791207,1725153040613,-500.0,0.00032602,7]
[336791209,1725153040623,-158.25,0.00032602,7]
[336791211,1725153040633,-500.0,0.00032602,31]
[336791213,1725153040642,-500.0,0.00032602,31]
[336791214,1725153040651,-500.0,0.00032602,31]
[336791216,1725153040660,-500.0,0.00032602,31]
[336791218,1725153040670,-500.0,0.00032602,31]
[336791220,1725153040681,-500.0,0.00032602,31]
[336791222,1725153040691,-500.0,0.00032602,31]
[336791223,1725153040702,-437.13096241,0.00032602,31]
[336791224,1725153040713,-500.0,0.00032602,31]
[336791225,1725153040724,-500.0,0.00032602,31]
[336791226,1725153040735,-500.0,0.00032602,31]
[336791227,1725153040746,-500.0,0.00032602,31]
[336791228,1725153040757,-483.64010277,0.00032602,31]
[336791229,1725153040768,-500.0,0.00032602,31]
[336791230,1725153040777,-500.0,0.00032602,31]
[336791231,1725153040787,-500.0,0.00032602,31]
[336791232,1725153040797,-501.31243796,0.00032602,31]
[336791233,1725153040807,-500.0,0.00032602,31]
[336791234,1725153040817,-500.0,0.00032602,31]
[336791235,1725153040828,-500.0,0.00032602,31]
[336791236,1725153040841,-500.0,0.00032602,31]
[336791237,1725153040850,-500.0,0.00032602,31]
[336791239,1725153040860,-500.0,0.00032602,31]
[336791240,1725153040869,-500.0,0.00032602,31]
[336791241,1725153040879,-174.75296375,0.00032602,31]
[336791242,1725153040888,-500.0,0.00032602,31]
[336791243,1725153040898,-500.0,0.00032602,31]
[336791244,1725153040909,-500.0,0.00032602,31]